Cogmind - Beta 17 @@@ ROGUE MODE // 2026.07.06 @ 02:47:14 Player: KuFish Result: Destroyed by G-47 Trooper with Particle Gun Performance ------------- Evolutions (2) 1000 Regions Visited (3) 600 Robots Destroyed (31) 155 Value Destroyed (1011) 1011 Prototype IDs (1) 20 Alien Tech Used (0) 0 Bonus (200) 200 TOTAL SCORE: 2986 Bonus ------- Pacifist 200 Cogmind --------- Core Integrity 0/550 Matter 260/300 Energy 81/100 System Corruption 0% Temperature Cool (9) Movement Rolling (100) Location -8/Materials Parts ------- > --- POWER (4) -------- (None) > --- PROPULSION (2) --- Armored Huge Wheel > --- UTILITY (3) ------ Targeting Computer Utility Shielding > --- WEAPON (2) ------- Gauss Rifle Light Cannon > --- INVENTORY (5) ---- Advanced Visual Processing Unit Light Cannon Heavy Flail Peak State ------------ > --- POWER ------------ Light Ion Engine Light Nuclear Core > --- PROPULSION ------- Armored Huge Wheel > --- UTILITY ---------- Targeting Computer ECM Suite Utility Shielding > --- WEAPON ----------- Ion Cannon Heavy Flail > --- INVENTORY -------- Armored Huge Wheel Improved Heat Sink Large Matter Pod [Rating: 22] Favorites ----------- Power Ion Engine Engine Ion Engine Power Core Light Nuclear Core Propulsion Aluminum Leg Leg Aluminum Leg Wheel Armored Huge Wheel Utility ECM Suite Device ECM Suite Storage Small Storage Unit Processor Targeting Computer Protection Utility Shielding Weapon Light Assault Rifle Energy Gun Field Laser Energy Cannon Ion Cannon Ballistic Gun Light Assault Rifle Ballistic Cannon Light Cannon Launcher Rocket Launcher Impact Weapon Heavy Flail Build | -11 -10 -9 -8 ------- Run | Yrd Mat Mat Mat Slots Evolved 4 | . . 2 2 Power 3 | . . 1 2 Propulsion . | . . . . Utility 1 | . . 1 . Weapon . | . . . . Parts Attached 32 | 6 2 12 12 Power 7 | 1 . 3 3 Engine 5 | 1 . 3 1 Core 2 | . . . 2 Reactor . | . . . . Propulsion 10 | 2 . 4 4 Treads . | . . . . Leg 8 | 2 . 4 2 Wheel 2 | . . . 2 Hover . | . . . . Flight . | . . . . Utility 5 | 1 2 2 . Device 2 | . 1 1 . Storage 1 | 1 . . . Processor 1 | . . 1 . Hackware . | . . . . Protection 1 | . 1 . . Artifact . | . . . . Weapon 10 | 2 . 3 5 Energy Gun 1 | . . . 1 Energy Cannon 1 | . . . 1 Ballistic Gun 4 | 2 . 1 1 Ballistic Cannon 1 | . . . 1 Launcher 1 | . . 1 . Special Weapon . | . . . . Impact Weapon 2 | . . 1 1 Slashing Weapon . | . . . . Piercing Weapon . | . . . . Special Melee Weapon . | . . . . Unidentified Prototypes 1 | . . 1 . Parts Lost 19 | . . 8 11 Power 6 | . . 3 3 Propulsion 5 | . . 2 3 Utility 2 | . . 1 1 Weapon 6 | . . 2 4 Highest Loss Streak 6 | . . 6 5 To Critical Strikes . | . . . . Average Backups 3 | 3 4 3 3 Power . | . 1 . . Propulsion . | 1 1 . . Utility 1 | . 1 2 1 Weapon . | . 1 1 . Tool/Special . | . . . . Unused Backups 8 | . 2 1 5 Power . | . . . . Propulsion 2 | . 2 . . Utility 4 | . . . 4 Weapon 2 | . . 1 1 Tool/Special . | . . . . Average Slot Usage (%) 70 | . 95 73 55 Engine 8 | . 14 9 4 Core 1 | . . . 4 Leg 13 | . 28 15 3 Wheel 1 | . . . 5 Device 12 | . 9 14 8 Storage 1 | . 8 . . Processor 6 | . . 6 9 Protection 9 | . 5 11 9 Ballistic Gun 9 | . 28 9 . Launcher 3 | . . 5 1 Impact Weapon 1 | . . . 5 Peak Build Rating 22 | 6 7 12 22 Average Rating 9 | 3 6 7 14 On Entrance 5 | . 6 7 7 Avg Prop Armor Cover (%) . | . . . . Naked Turns . | . . . . Heaviest Build 20 | 13 15 15 20 Greatest Support 28 | 20 20 23 28 Greatest Overweight (x) 4 | . . 4 2 Average Overweight (x) . | . . . . Largest Inventory Capacity 8 | 8 8 5 5 Average Capacity 5 | 7 6 5 5 Most Carried 6 | 6 6 5 5 Average Carried 3 | 3 4 3 3 Final Capacity 8 | 8 5 5 5 Final Carried 5 | 4 5 3 3 Class Distribution -------------------- 100% | Mutant Dominant Class ---------------- Mutant | -10/Materials Mutant | -9/Materials Mutant | -8/Materials Resources | -11 -10 -9 -8 ----------- Run | Yrd Mat Mat Mat Matter Collected 832 | 254 . 342 236 Remotely . | . . . . Salvage Created 1065 | . . 583 482 Parts 57 | . . 43 14 Haulers Intercepted 1 | . . 1 . Recyclers Shooed . | . . . . Parts Field Recycled . | . . . . Retrieved Matter . | . . . . Parts Self-Destructed . | . . . . Prevented . | . . . . Parts Restored . | . . . . Kills | -11 -10 -9 -8 ------- Run | Yrd Mat Mat Mat Combat Hostiles Destroyed 28 | . . 19 9 Melee 3 | . . 1 2 Guns 12 | . . 11 1 Cannons 2 | . . . 2 AOE 8 | . . 7 1 Classes Destroyed 8 | . . 4 4 Hauler 1 | . . 1 . Operator 1 | . . . 1 Watcher 1 | . . . 1 Swarmer 7 | . . 7 . Grunt 15 | . . 8 7 Brawler 1 | . . . 1 Sentry 4 | . . 4 . Hunter 1 | . . . 1 Best Kill Streak 6 | . . 6 4 Combat Bots Only 6 | . . 6 4 Max Kills in Single Turn 2 | . . 2 1 Gunslinging . | . . . . Exploded 2 | . . 2 1 Melee 1 | . . 1 1 Uniques/NPCs Destroyed . | . . . . Combat | -11 -10 -9 -8 -------- Run | Yrd Mat Mat Mat Hostile Shots Fired 287 | . . 153 134 Missed 74 | . . 43 31 Hits 213 | . . 110 103 Projectile 213 | . . 110 103 Critical Strikes 12 | . . 2 10 Damage Taken 2936 | . . 1269 1667 Core 925 | . . 365 560 Absorbed by Shields . | . . . . Redirected to Shielding 19 | . . 14 5 Core Remaining (%) 69 | 100 100 8 . Volleys Fired 55 | . 1 36 18 Largest 2 | . 2 2 2 Hottest 63 | . 40 43 63 Shots Fired 78 | . 2 57 19 Gun 54 | . 2 48 4 Cannon 12 | . . . 12 Launcher 12 | . . 9 3 Special . | . . . . Kinetic 56 | . 2 48 6 Thermal 10 | . . . 10 Explosive 12 | . . 9 3 Electromagnetic . | . . . . Robot Hit Streak 19 | . . 19 5 Robot Miss Streak 5 | . 2 5 2 Penetration Max . | . . . . Secondary Targets 4 | . . 4 . Max Gunslinging Chain 1 | . . 1 . Shots Hit Robots 60 | . . 39 21 Core Hits 39 | . . 27 12 Critical Kills 1 | . . . 1 Critical Parts Destroyed 5 | . . 1 4 Critical Strikes 6 | . . 1 5 Destroy 1 | . . 1 . Smash 5 | . . . 5 Melee Attacks 21 | . . 2 19 Impact 21 | . . 2 19 Slashing . | . . . . Piercing . | . . . . Sneak Attacks . | . . . . Combat Hostiles . | . . . . Follow-up Attacks . | . . . . Damage Inflicted 1702 | . . 809 893 Guns 370 | . . 302 68 Cannons 167 | . . . 167 Explosions 707 | . . 486 221 Melee 458 | . . 21 437 Ramming . | . . . . Kinetic 370 | . . 302 68 Thermal 167 | . . . 167 Explosive 707 | . . 486 221 Electromagnetic . | . . . . Impact 458 | . . 21 437 Slashing . | . . . . Piercing . | . . . . Highest Corruption . | . . . . Average Corruption . | . . . . Corruption Purged . | . . . . Corruption Blocked . | . . . . Overload Shots . | . . . . Overflow Damage 255 | . . . 255 Projectiles . | . . . . Explosions . | . . . . Melee 255 | . . . 255 Knockbacks 2 | . . . 2 Impact 1 | . . . 1 Kinetic 1 | . . . 1 Secondary . | . . . . Self-Inflicted Damage . | . . . . Shots . | . . . . Rammed . | . . . . Targets Rammed . | . . . . Kicked . | . . . . Crushed . | . . . . Highest Temperature 85 | . . 31 85 Average Temperature 22 | . . 11 33 Received Heat Transfer 1389 | . . 381 1008 Siege Activations . | . . . . Martial Activations . | . . . . Shielding Activations . | . . . . Robots Disrupted . | . . . . Combat Hostiles . | . . . . Robots Corrupted 3 | . . . 3 Combat Hostiles 3 | . . . 3 Parts Fried 7 | . . . 7 Impact Corruptions 6 | . . . 6 Robots Melted . | . . . . Combat Hostiles . | . . . . Parts Melted . | . . . . Heat Transferred 296 | . . . 296 Parts Sabotaged . | . . . . Parts Stolen . | . . . . Parts Stripped . | . . . . Power Chain Reactions . | . . . . Alert | -11 -10 -9 -8 ------- Run | Yrd Mat Mat Mat Maximum Alert Level . | . . . . Low Security (%) 100 | 100 100 100 100 Level 1 . | . . . . Level 2 . | . . . . Level 3 . | . . . . Level 4 . | . . . . Level 5 . | . . . . High Security . | . . . . Max Security . | . . . . Peak Influence 181 | . . 181 80 Initial 55 | . . . 55 Average 57 | . . 89 32 Influence Increases 813 | . . 531 282 Destroy 0b10 Robot/C 560 | . . 380 180 Destroy 0b10 Robot/NC 15 | . . 5 10 Destroy Leader 114 | . . 82 32 Successful Hack 6 | . . 2 4 Disable Machine 15 | . . 15 . Destroy Structure 73 | . . 47 26 Lose Combat Pursuer 30 | . . . 30 Influence Decreases 765 | . . 399 366 Entered New Map 77 | . . . 77 Time Decay 528 | . . 339 189 Lost Part 160 | . . 60 100 Squads Dispatched 5 | . 1 1 3 Investigation 1 | . 1 . . Extermination . | . . . . Reinforcement 4 | . . 1 3 Assault . | . . . . Garrison . | . . . . Intercept . | . . . . Searches Triggered . | . . . . Construction Impeded 1 | . . . 1 Haulers Reinforced . | . . . . Active Scanning Responses . | . . . . Cargo Convoy Interrupts . | . . . . Stealth | -11 -10 -9 -8 --------- Run | Yrd Mat Mat Mat Distress Signals 8 | . . 5 3 Communications Jammed . | . . . . Distress Signals . | . . . . Times Spotted 70 | . 3 39 28 Peak Tracking Total 9 | . 1 9 6 Tactical Retreats 11 | . . 6 5 ECM-based Alert Blocks 14 | . . 10 4 Traps | -11 -10 -9 -8 ------- Run | Yrd Mat Mat Mat Traps Triggered 4 | . 1 3 . Indirectly . | . . . . Trap Hack Attempts . | . . . . Triggered . | . . . . Disarmed . | . . . . Reprogrammed . | . . . . Reused . | . . . . Traps Extracted . | . . . . Installed . | . . . . Triggered . | . . . . Machines | -11 -10 -9 -8 ---------- Run | Yrd Mat Mat Mat Machines Disabled 1 | . . 1 . Max in Single Turn 1 | . . 1 . Machines Repaired . | . . . . Machines Dismantled . | . . . . Machines Sabotaged . | . . . . Overloaded Fab Kills . | . . . . Hacking | -11 -10 -9 -8 --------- Run | Yrd Mat Mat Mat Machines Accessed 5 | . 1 2 2 Terminals 4 | . 1 1 2 Fabricators . | . . . . Repair Stations . | . . . . Recycling Units . | . . . . Scanalyzers 1 | . . 1 . Garrison Access . | . . . . Total Hacks 8 | . 2 4 2 Successful 5 | . . 4 1 Failed 3 | . 2 . 1 Catastrophic . | . . . . Database Lockouts . | . . . . Manual . | . . . . Terminals 6 | . 2 2 2 Fabricators . | . . . . Repair Stations . | . . . . Recycling Units . | . . . . Scanalyzers 2 | . . 2 . Garrison Access . | . . . . Terminal Hacks 3 | . . 2 1 Emergency Access Points 2 | . . 1 1 Alert Level 1 | . . 1 . Fabricator Hacks . | . . . . Repair Station Hacks . | . . . . Recycling Unit Hacks . | . . . . Scanalyzer 2 | . . 2 . Insert Component 1 | . . 1 . Analyze 1 | . . 1 . Garrison Access Hacks . | . . . . Unauthorized Hacks . | . . . . Terminals . | . . . . Fabricators . | . . . . Repair Stations . | . . . . Recycling Units . | . . . . Scanalyzers . | . . . . Garrison Access . | . . . . Data Cores Recovered 1 | . . . 1 Used . | . . . . Hacking Detections 4 | . 1 1 2 Full Trace Events . | . . . . Feedback Events . | . . . . Feedback Blocked . | . . . . Robot Schematics Acquired . | . . . . Robots Built . | . . . . Authchips . | . . . . Time . | . . . . Total Robot Build Rating . | . . . . Part Schematics Acquired 1 | . . 1 . Parts Built . | . . . . Authchips . | . . . . Time . | . . . . Total Part Build Rating . | . . . . Part Studies Acquired . | . . . . Parts Repaired . | . . . . Time . | . . . . Parts Recycled . | . . . . Recycled Matter . | . . . . Retrieved Matter . | . . . . Retrieved Components . | . . . . Parts Scanalyzed 1 | . . 1 . Part Schematics Acquired 1 | . . 1 . Parts Damaged . | . . . . Bothacking | -11 -10 -9 -8 ------------ Run | Yrd Mat Mat Mat Used RIF Installer . | . . . . Robots Hacked . | . . . . Non-combat . | . . . . Combat . | . . . . Robot Hacks Applied . | . . . . Relay Couplers Released . | . . . . Fabnet Peak Effective % . | . . . . Robots Rewired . | . . . . Allies Hacked . | . . . . Hacks Repelled . | . . . . Allies | -11 -10 -9 -8 -------- Run | Yrd Mat Mat Mat Total Allies . | . . . . Largest Group . | . . . . Highest-Rated Group . | . . . . Highest-Rated Ally . | . . . . Total Orders . | . . . . Ally Attacks . | . . . . Total Damage . | . . . . Kills . | . . . . Allies Corrupted . | . . . . Allies Melted . | . . . . Intel | -11 -10 -9 -8 ------- Run | Yrd Mat Mat Mat Active Infowar (turns) 1232 | . 134 773 325 Sensors 312 | . . 312 . ECM 1232 | . 134 773 325 Robot Analysis Total . | . . . . Derelict Logs Recovered . | . . . . Drone Launches . | . . . . Drone Recoveries . | . . . . Exploration | -11 -10 -9 -8 ------------- Run | Yrd Mat Mat Mat Turns Passed 1670 | 74 197 901 498 Spaces Moved 990 | 65 154 436 335 Core 111 | 27 . 61 23 Treads . | . . . . Legs 632 | 38 154 375 65 Wheels 247 | . . . 247 Hover . | . . . . Flight . | . . . . Fastest Speed 50 | 50 120 50 100 Average Speed 111 | 90 120 112 111 Slowest Speed 250 | 120 120 250 190 Overloaded Moves . | . . . . Propulsion Burnouts . | . . . . Robots Hopped . | . . . . Potential Cave-ins . | . . . . Cave-ins Triggered . | . . . . Exploration Rate (%) 26 | 4 32 36 34 Regions Visited 3 Branch Regions . Pre-discovered Areas . | . . . . Known Exits Taken . | . . . . Unknown Exits Taken 3 | 1 1 1 . Scrap Searched . | . . . . Spaces Dug 1 | . . . 1 Terrain Destroyed 76 | . . 46 30 Melee 1 | . . . 1 Projectile . | . . . . AOE 75 | . . 46 29 Terrain Rammed . | . . . . Walls Destroyed . | . . . . Machines Disabled . | . . . . Actions | -11 -10 -9 -8 --------- Run | Yrd Mat Mat Mat Total 1454 | 80 166 792 416 Wait 293 | . . 285 8 Move 987 | 64 153 435 335 Hop . | . . . . Pick Up 45 | 10 6 13 16 Fast Attach . | . . . . Attach 33 | 6 2 13 12 Detach 1 | . . 1 . Swap 6 | . . 4 2 Drop 13 | . 4 3 6 Fire 55 | . 1 36 18 Melee 21 | . . 2 19 Ram . | . . . . Kick . | . . . . Crush . | . . . . Escape Stasis . | . . . . Rewire . | . . . . Trap . | . . . . Miscellaneous . | . . . . Route ------- -11/Scrapyard -10/Materials -9/Materials (discovered 2 exits: *Mat / [*Min]) -8/Materials History --------- Turn | Location | Event 18 | -11/Scrapyard | Discovered new exit (range 15) 75 | -11/Scrapyard | Entered Materials 213 | -10/Materials | Discovered new exit (range 16) 272 | -10/Materials | Entered another Materials area 272 | -9/Materials | Evolved 2 slots: Power x1, Utility x1 311 | -9/Materials | Build established: Mutant 641 | -9/Materials | Discovered new exit (range 13) 665 | -9/Materials | Core integrity fell below 50% 707 | -9/Materials | Lost 6 parts (2p2n2w) 711 | -9/Materials | Core integrity fell below 20% 1125 | -9/Materials | Discovered new exit (range 3) 1173 | -9/Materials | Entered another Materials area 1173 | -8/Materials | Evolved 2 slots: Power x2 1291 | -8/Materials | Lost 5 parts (1p2n2w) 1575 | -8/Materials | Core integrity fell below 50% 1628 | -8/Materials | Core integrity fell below 20% 1671 | -8/Materials | Destroyed by G-47 Trooper with Particle Gun Last Messages --------------- Critical hit (Burn: +37). W-25 Informer suffers critical hit (Smash). Destroyed Imp. Hover Unit. Destroyed Visual Processing Unit. W-25 Informer system corrupted by crushing effect. Imp. Hover Unit fried. W-25 Informer destroyed. Acquired 10 matter. Dropped Corrupted Particle Gun. Field Laser destroyed. ECM Suite destroyed. Critical hit (Burn: +37). K-01 Serf cleans the Neutrino Reactor. U-05 Engineer builds a Wall. K-01 Serf cleans the Neutrino Reactor. Acquired Lgt. Cannon. G-47 Trooper knocked back. Slug penetrates G-47 Trooper. G-47 Trooper destroyed. Map ----- +----------------------------------------------------+ | | | | | #####??##############????????????????????????????? | | #??# * #????????????????????????????? | | " T #??# #????????????????????????????? | | " #??# ] /=#############????????????????? | | " #??# =??# + T #??????????????? | | #?## ????# # #??????????????? | | /#############/####### #??"" #?????????????? | | % = #???? ##?????????????? | | = =! / ""??? #??????????????? | | [ #???????????????????????? | | # ######### ##+####???????????????????????? | | # #! ## ## #????????????????????????? | | # # ##==!!!!## T #????????????????????????? | | # + ##==!!!!## #????????????????????????? | | # # #"########! #????????????????????????? | | # # # #?????# #????????????????????????? | | # # # ##?????# #????????????????????????? | | # ###"#/####??????#! #????????????????????????? | | # ##### ###???????#####????????????????????????? | | # ##??# #??????????##########??????????????????? | | + ##### #??????????# #??????????????????? | | # #?????????# #??????????????????? | | # #?????????# ]]! #??????????????????? | | # #?????????# @!! #??????????????????? | | # #### #?????????# !! #??????????????????? | | # #??# #?????????# #??????????????????? | | # #??# #?????????# #??????????????????? | | # #??# #?????????# * #??????????????????? | | # #??# #?????????# %=g #??????????????????? | | # #??# #?????????#####g####??????????????????? | | # #??# #??????????# % ######+#+#?????????? | | # #??# ############ #?????????? | | # #??# # """ """ ## !#?????????? | | # #??# # """ """ / #?????????? | | # #??# # """ """ ## #?????????? | | #??# # ## """ """ #?????????? | | #??# / ] ## """"""""" #?????????? | | ]] ##?# # [ ## """"" " ????????????? | | ]] T#?### # ## ? ????????????? | | ]] ##???# # ## ? ????????????? | | #????# ############ """ "???????????????? | | #????#%#??????????# """""""??????????????? | | #????# #??????????# """"? ??????????????? | | ######/####???????# ??????????????????? | | # # #???????# ???????????????????? | | # # "" #???????# ""??????????????????? | | # # T" #???????# ""???????????????????? | | # # "" #???????# ????????????????????? | +----------------------------------------------------+ Best States ------------- Heat Dissipation 31 Energy Generation 19 Energy Capacity 290 Matter Stores 300 Matter Capacity 300 Sight Range 16 Robot Scan Range 14 Terrain Scan Density 10 ECM Strength 1 Utility Shielding 33 Evasion (%) 55 Targeting Accuracy 5 Item Schematics ----------------- ECM Suite | -9/Materials | Scanalyzed Robot Schematics ------------------ None Fabricated ------------ Nothing Repaired ---------- Nothing Studied --------- None Alien Tech Used ----------------- None Achievements -------------- Close Call Hammer Time Challenges ------------ None Game ------ Seed SubatomicSniperRipteeth Manual? 0 Play Time 00:25:49 Cumulative 8.9 hours Start 2026.07.06 @ 02:24:02 End 2026.07.06 @ 02:47:14 Sessions 1 Manual Loads 0 Difficulty Rogue Special Mode None Game No. 16 Rogue 16 Adventurer 0 Explorer 0 Win Type - Total 0 Types 0/0/0/0/0/0/0/0/0/0 Lore% 4 Gallery% 11 Achievement% 10 Wizard Run 0 Options --------- Layout 1 ASCII 0 Keyboard 0 Movement Arrows Keybinds 0 Fullscreen 2 Font 24/Smallcaps Map View 50x40 Zoom Use 0% Tactical HUD 0 Map Filters NONE Filters NONE Steam 1 RUN: 67b7d08d-98f0-40be-8b06-56b7ac3f6f81